[Event "*** SCC Grand Prix: Titled Tuesday Blitz"]
[Site "Chess.com"]
[Date "2020.08.04"]
[Round "5"]
[White "biaf13"]
[Black "51616516516"]
[Result "1-0"]
[WhiteElo "1982"]
[BlackElo "2254"]
[TimeControl "180+1"]
[EndTime "14:39:05 PDT"]
[Termination "biaf13 won by resignation"]

1. e4 {[%clk 0:03:00.9]} 1... c5 {[%clk 0:02:58.9]} 2. Nf3 {[%clk 0:03:00.5]}
2... g6 {[%clk 0:02:58.4]} 3. d4 {[%clk 0:03:00.6]} 3... cxd4 {[%clk 0:02:59.3]}
4. Nxd4 {[%clk 0:03:01.5]} 4... Nc6 {[%clk 0:02:58.9]} 5. Nc3 {[%clk 0:02:59.8]}
5... Bg7 {[%clk 0:02:58.8]} 6. Be3 {[%clk 0:02:58.7]} 6... Nf6 {[%clk
0:02:59.2]} 7. Bc4 {[%clk 0:02:57.4]} 7... O-O {[%clk 0:02:59.5]} 8. Bb3 {[%clk
0:02:57.6]} 8... d6 {[%clk 0:02:59.9]} 9. f3 {[%clk 0:02:57.6]} 9... Bd7 {[%clk
0:03:00.3]} 10. Qd2 {[%clk 0:02:58.2]} 10... Nxd4 {[%clk 0:03:00.9]} 11. Bxd4
{[%clk 0:02:58]} 11... b5 {[%clk 0:03:01.8]} 12. O-O-O {[%clk 0:02:56.7]} 12...
a5 {[%clk 0:03:01.7]} 13. Nd5 {[%clk 0:02:56.4]} 13... Nxd5 {[%clk 0:02:53.6]}
14. Bxd5 {[%clk 0:02:53.5]} 14... Bxd4 {[%clk 0:02:41.5]} 15. Bxa8 {[%clk
0:02:46.8]} 15... Bxb2+ {[%clk 0:02:41.1]} 16. Kxb2 {[%clk 0:02:46.7]} 16...
Qxa8 {[%clk 0:02:42]} 17. Qd5 {[%clk 0:02:46]} 17... Bc6 {[%clk 0:02:37.5]} 18.
Qd4 {[%clk 0:02:44.2]} 18... b4 {[%clk 0:02:22]} 19. h4 {[%clk 0:02:43.1]} 19...
Qb7 {[%clk 0:01:37.5]} 20. h5 {[%clk 0:02:41]} 20... Qb5 {[%clk 0:01:31.5]} 21.
f4 {[%clk 0:02:25.2]} 21... Rc8 {[%clk 0:01:00.3]} 22. hxg6 {[%clk 0:02:21.2]}
22... fxg6 {[%clk 0:00:59.8]} 23. Rxh7 {[%clk 0:01:59.3]} 23... Kxh7 {[%clk
0:01:00.7]} 24. Rh1+ {[%clk 0:01:58.2]} 24... Kg8 {[%clk 0:01:00.5]} 25. Rh8+
{[%clk 0:01:51.1]} 25... Kf7 {[%clk 0:01:00.1]} 26. Rxc8 {[%clk 0:01:51.3]}
26... Bd7 {[%clk 0:00:50.8]} 27. Rh8 {[%clk 0:01:36.2]} 27... Be6 {[%clk
0:00:29.9]} 28. Rh7+ {[%clk 0:01:33.6]} 28... Ke8 {[%clk 0:00:29.3]} 29. Qa7
{[%clk 0:01:15.1]} 29... Bd7 {[%clk 0:00:20.3]} 30. Qa8+ {[%clk 0:01:14.3]} 1-0

[Event "*** SCC Grand Prix: Titled Tuesday Blitz"]
[Site "Chess.com"]
[Date "2020.08.04"]
[Round "5"]
[White "DenLaz"]
[Black "mishanick"]
[Result "1/2-1/2"]
[WhiteElo "2717"]
[BlackElo "2930"]
[TimeControl "180+1"]
[EndTime "14:39:09 PDT"]
[Termination "Game drawn by repetition"]

1. d4 {[%clk 0:02:59.7]} 1... Nf6 {[%clk 0:02:59.8]} 2. c4 {[%clk 0:02:59]} 2...
e6 {[%clk 0:02:59.2]} 3. Nf3 {[%clk 0:02:58.6]} 3... d5 {[%clk 0:02:59.6]} 4.
Nc3 {[%clk 0:02:57.9]} 4... dxc4 {[%clk 0:03:00.1]} 5. e4 {[%clk 0:02:57.8]}
5... b5 {[%clk 0:02:46]} 6. e5 {[%clk 0:02:56.6]} 6... Nd5 {[%clk 0:02:46.3]} 7.
Nxb5 {[%clk 0:02:57.2]} 7... Nb6 {[%clk 0:02:47]} 8. Be2 {[%clk 0:02:56.3]} 8...
Nc6 {[%clk 0:02:47.2]} 9. O-O {[%clk 0:02:56.3]} 9... Rb8 {[%clk 0:02:46]} 10.
Qd2 {[%clk 0:02:53.9]} 10... Be7 {[%clk 0:02:44.8]} 11. Nc3 {[%clk 0:02:53.1]}
11... O-O {[%clk 0:02:44.4]} 12. Qf4 {[%clk 0:02:52.3]} 12... Kh8 {[%clk
0:02:44.9]} 13. Rd1 {[%clk 0:02:50.3]} 13... Nb4 {[%clk 0:02:44.8]} 14. Qg3
{[%clk 0:02:41]} 14... Bb7 {[%clk 0:02:44.7]} 15. a3 {[%clk 0:02:27.6]} 15...
N4d5 {[%clk 0:02:36.8]} 16. Ne4 {[%clk 0:02:23.2]} 16... Ne3 {[%clk 0:02:32.2]}
17. Bxe3 {[%clk 0:02:16.6]} 17... Bxe4 {[%clk 0:02:32.7]} 18. Nd2 {[%clk
0:02:13.9]} 18... Bd5 {[%clk 0:02:31.8]} 19. a4 {[%clk 0:02:07.9]} 19... a5
{[%clk 0:02:30.2]} 20. Rdc1 {[%clk 0:02:04.1]} 20... Qd7 {[%clk 0:02:30]} 21.
Nxc4 {[%clk 0:02:00.1]} 21... Nxc4 {[%clk 0:02:20.9]} 22. Bxc4 {[%clk 0:02:01]}
22... Bxc4 {[%clk 0:02:11.5]} 23. Rxc4 {[%clk 0:01:59.9]} 23... Rxb2 {[%clk
0:02:12]} 24. Rac1 {[%clk 0:01:58.3]} 24... Rc8 {[%clk 0:02:03.9]} 25. Qf3
{[%clk 0:01:45.8]} 25... Kg8 {[%clk 0:01:42]} 26. g3 {[%clk 0:01:37.5]} 26... g6
{[%clk 0:01:39.5]} 27. Qc6 {[%clk 0:01:33]} 27... Qd8 {[%clk 0:01:39.1]} 28. h4
{[%clk 0:01:26.9]} 28... h5 {[%clk 0:01:38]} 29. d5 {[%clk 0:01:12.3]} 29...
Qxd5 {[%clk 0:01:11.2]} 30. Qxd5 {[%clk 0:01:11.2]} 30... exd5 {[%clk
0:01:12.1]} 31. Rxc7 {[%clk 0:01:11.8]} 31... Rxc7 {[%clk 0:01:11.9]} 32. Rxc7
{[%clk 0:01:12.7]} 32... Bb4 {[%clk 0:01:12.3]} 33. Rc8+ {[%clk 0:01:03.6]}
33... Kh7 {[%clk 0:01:06.1]} 34. Rc7 {[%clk 0:00:42.3]} 34... Kg8 {[%clk
0:01:01.5]} 35. Rc8+ {[%clk 0:00:39.3]} 35... Kh7 {[%clk 0:01:01.1]} 36. Rc7
{[%clk 0:00:39.4]} 36... Kg8 {[%clk 0:00:56.6]} 1/2-1/2

[Event "*** SCC Grand Prix: Titled Tuesday Blitz"]
[Site "Chess.com"]
[Date "2020.08.04"]
[Round "5"]
[White "Dr-Bassem"]
[Black "Keithonsky"]
[Result "1-0"]
[WhiteElo "2790"]
[BlackElo "2562"]
[TimeControl "180+1"]
[EndTime "14:39:20 PDT"]
[Termination "Dr-Bassem won by resignation"]

1. e4 {[%clk 0:03:00.9]} 1... e6 {[%clk 0:02:56.7]} 2. d3 {[%clk 0:03:00.3]}
2... c5 {[%clk 0:02:57.1]} 3. g3 {[%clk 0:02:59.8]} 3... Nc6 {[%clk 0:02:57.6]}
4. Bg2 {[%clk 0:03:00]} 4... g6 {[%clk 0:02:57.6]} 5. Nf3 {[%clk 0:03:00.3]}
5... Bg7 {[%clk 0:02:57.8]} 6. O-O {[%clk 0:03:01]} 6... Nge7 {[%clk 0:02:58]}
7. c3 {[%clk 0:03:01.2]} 7... d6 {[%clk 0:02:58.5]} 8. d4 {[%clk 0:03:01.2]}
8... O-O {[%clk 0:02:57]} 9. Re1 {[%clk 0:02:59.1]} 9... b6 {[%clk 0:02:52.4]}
10. h4 {[%clk 0:02:57.7]} 10... Bb7 {[%clk 0:02:52.8]} 11. h5 {[%clk 0:02:57.8]}
11... e5 {[%clk 0:02:48]} 12. hxg6 {[%clk 0:02:46]} 12... hxg6 {[%clk
0:02:46.1]} 13. d5 {[%clk 0:02:45]} 13... Nb8 {[%clk 0:02:43.9]} 14. Ng5 {[%clk
0:02:45.4]} 14... Nd7 {[%clk 0:02:37.2]} 15. Qg4 {[%clk 0:02:40.4]} 15... Re8
{[%clk 0:02:30.1]} 16. Qh4 {[%clk 0:02:27.4]} 16... Nf8 {[%clk 0:02:29.9]} 17.
Bh3 {[%clk 0:02:13.3]} 17... Bc8 {[%clk 0:02:29.3]} 18. Kg2 {[%clk 0:02:04.9]}
18... Bxh3+ {[%clk 0:02:27.4]} 19. Qxh3 {[%clk 0:02:00.3]} 19... Qc8 {[%clk
0:02:27.3]} 20. Qh4 {[%clk 0:01:58.5]} 20... f6 {[%clk 0:02:26.9]} 21. Nf3
{[%clk 0:01:57.3]} 21... g5 {[%clk 0:02:24.7]} 22. Qh5 {[%clk 0:01:55.7]} 22...
Neg6 {[%clk 0:02:24.2]} 23. Na3 {[%clk 0:01:50.5]} 23... Qa6 {[%clk 0:02:21.4]}
24. c4 {[%clk 0:01:30.7]} 24... Qb7 {[%clk 0:02:14.2]} 25. Nc2 {[%clk
0:01:27.1]} 25... Qf7 {[%clk 0:02:14]} 26. Rh1 {[%clk 0:01:24.9]} 26... Qd7
{[%clk 0:02:11.4]} 27. Ne3 {[%clk 0:01:23.6]} 27... Kf7 {[%clk 0:02:04.9]} 28.
Nf5 {[%clk 0:01:22.2]} 28... b5 {[%clk 0:01:57.3]} 29. Bxg5 {[%clk 0:01:21.3]}
29... fxg5 {[%clk 0:01:50.4]} 30. Nxg5+ {[%clk 0:01:22.2]} 30... Kf6 {[%clk
0:01:49.7]} 31. Qf3 {[%clk 0:00:51.2]} 31... Kxg5 {[%clk 0:01:36.2]} 32. Nxg7
{[%clk 0:00:50.9]} 32... Nf4+ {[%clk 0:00:58.9]} 33. gxf4+ {[%clk 0:00:51.8]}
33... Kg6 {[%clk 0:00:59.8]} 34. Nxe8 {[%clk 0:00:45.6]} 34... Rxe8 {[%clk
0:01:00.7]} 35. Qh5+ {[%clk 0:00:42]} 35... Kg7 {[%clk 0:00:57.8]} 36. Qh8+
{[%clk 0:00:39.1]} 36... Kf7 {[%clk 0:00:57.8]} 37. Rh7+ {[%clk 0:00:39]} 1-0

[Event "*** SCC Grand Prix: Titled Tuesday Blitz"]
[Site "Chess.com"]
[Date "2020.08.04"]
[Round "5"]
[White "Resignify"]
[Black "Char_dasha"]
[Result "0-1"]
[WhiteElo "2208"]
[BlackElo "2401"]
[TimeControl "180+1"]
[EndTime "14:39:22 PDT"]
[Termination "Char_dasha won on time"]

1. e4 {[%clk 0:03:00.9]} 1... e5 {[%clk 0:02:51.1]} 2. Nf3 {[%clk 0:03:00]} 2...
Nc6 {[%clk 0:02:50.6]} 3. Bb5 {[%clk 0:02:59.6]} 3... d6 {[%clk 0:02:49.9]} 4.
c3 {[%clk 0:02:56.1]} 4... Bd7 {[%clk 0:02:49.1]} 5. d4 {[%clk 0:02:54.5]} 5...
a6 {[%clk 0:02:48.1]} 6. Ba4 {[%clk 0:02:48.4]} 6... b5 {[%clk 0:02:46]} 7. Bb3
{[%clk 0:02:41.7]} 7... Na5 {[%clk 0:02:39.7]} 8. Bc2 {[%clk 0:02:36.4]} 8...
Qe7 {[%clk 0:02:30.3]} 9. O-O {[%clk 0:02:32.1]} 9... g6 {[%clk 0:02:27.3]} 10.
dxe5 {[%clk 0:02:20.6]} 10... dxe5 {[%clk 0:02:26.4]} 11. Bg5 {[%clk 0:01:58.2]}
11... Nf6 {[%clk 0:02:16.6]} 12. Nbd2 {[%clk 0:01:46.7]} 12... Bg7 {[%clk
0:02:13.3]} 13. Qe2 {[%clk 0:01:41.3]} 13... O-O {[%clk 0:02:13]} 14. Rad1
{[%clk 0:01:37.3]} 14... Rfe8 {[%clk 0:02:11.1]} 15. Rfe1 {[%clk 0:01:34.4]}
15... Rad8 {[%clk 0:02:00.6]} 16. Nf1 {[%clk 0:01:33]} 16... Nc4 {[%clk
0:01:59.4]} 17. b3 {[%clk 0:01:20.8]} 17... Nb6 {[%clk 0:01:55.9]} 18. Ne3
{[%clk 0:01:18.4]} 18... Bc6 {[%clk 0:01:44]} 19. Rxd8 {[%clk 0:01:15.9]} 19...
Qxd8 {[%clk 0:01:36.6]} 20. Rd1 {[%clk 0:01:12.2]} 20... Qc8 {[%clk 0:01:34.8]}
21. Bxf6 {[%clk 0:00:59]} 21... Bxf6 {[%clk 0:01:34.5]} 22. h3 {[%clk
0:00:54.3]} 22... h5 {[%clk 0:01:27.9]} 23. Nd5 {[%clk 0:00:45.8]} 23... Bxd5
{[%clk 0:01:25.7]} 24. exd5 {[%clk 0:00:46.4]} 24... e4 {[%clk 0:01:26]} 25.
Bxe4 {[%clk 0:00:34.9]} 25... Bxc3 {[%clk 0:01:25.8]} 26. Qc2 {[%clk 0:00:28.7]}
26... Bg7 {[%clk 0:01:19.4]} 27. Bd3 {[%clk 0:00:08.9]} 27... Qd7 {[%clk
0:01:08]} 28. Qc6 {[%clk 0:00:08.1]} 28... Rd8 {[%clk 0:01:06.4]} 29. Be4 {[%clk
0:00:04.7]} 29... Qxc6 {[%clk 0:01:05.7]} 0-1

[Event "*** SCC Grand Prix: Titled Tuesday Blitz"]
[Site "Chess.com"]
[Date "2020.08.04"]
[Round "5"]
[White "smartinusa"]
[Black "OparinGrigoriy"]
[Result "0-1"]
[WhiteElo "2584"]
[BlackElo "2944"]
[TimeControl "180+1"]
[EndTime "14:39:26 PDT"]
[Termination "OparinGrigoriy won by resignation"]

1. d4 {[%clk 0:03:00.9]} 1... Nf6 {[%clk 0:02:57.1]} 2. c4 {[%clk 0:02:54.2]}
2... e6 {[%clk 0:02:57.5]} 3. Nf3 {[%clk 0:02:53.8]} 3... Bb4+ {[%clk
0:02:57.9]} 4. Bd2 {[%clk 0:02:53.1]} 4... a5 {[%clk 0:02:58.3]} 5. g3 {[%clk
0:02:52.9]} 5... d5 {[%clk 0:02:57.8]} 6. Bg2 {[%clk 0:02:52.7]} 6... O-O {[%clk
0:02:58.4]} 7. O-O {[%clk 0:02:52.2]} 7... c6 {[%clk 0:02:58.6]} 8. Qc2 {[%clk
0:02:48.5]} 8... Nbd7 {[%clk 0:02:58.5]} 9. Bg5 {[%clk 0:02:48]} 9... h6 {[%clk
0:02:57.8]} 10. Bf4 {[%clk 0:02:46.2]} 10... Be7 {[%clk 0:02:54.6]} 11. Nbd2
{[%clk 0:02:45.7]} 11... Nh5 {[%clk 0:02:53.5]} 12. Be3 {[%clk 0:02:45.4]} 12...
b6 {[%clk 0:02:53.5]} 13. Rac1 {[%clk 0:02:43.4]} 13... Ba6 {[%clk 0:02:53.2]}
14. Rfe1 {[%clk 0:02:40.8]} 14... f5 {[%clk 0:02:48.6]} 15. a3 {[%clk 0:02:37]}
15... Nhf6 {[%clk 0:02:47.5]} 16. Bf4 {[%clk 0:02:36.1]} 16... g5 {[%clk
0:02:46.6]} 17. Be5 {[%clk 0:02:35.4]} 17... g4 {[%clk 0:02:44]} 18. Nh4 {[%clk
0:02:28.1]} 18... Kh7 {[%clk 0:02:32.5]} 19. cxd5 {[%clk 0:02:15.1]} 19... cxd5
{[%clk 0:02:33.4]} 20. Nxf5 {[%clk 0:02:08.5]} 20... exf5 {[%clk 0:02:31]} 21.
Qxf5+ {[%clk 0:02:07.6]} 21... Kh8 {[%clk 0:02:20.6]} 22. Qf4 {[%clk 0:01:16]}
22... Nxe5 {[%clk 0:02:15.2]} 23. dxe5 {[%clk 0:01:02.8]} 23... Nh7 {[%clk
0:02:15.1]} 24. Qxg4 {[%clk 0:00:52.7]} 24... Ra7 {[%clk 0:02:15.5]} 25. Rc6
{[%clk 0:00:48.2]} 25... Bc5 {[%clk 0:02:14]} 26. e3 {[%clk 0:00:45.8]} 26...
Rg7 {[%clk 0:02:08.3]} 27. Rg6 {[%clk 0:00:40.1]} 27... Rxg6 {[%clk 0:01:57.1]}
28. Qxg6 {[%clk 0:00:39.4]} 28... Qg5 {[%clk 0:01:57.5]} 29. Qxg5 {[%clk
0:00:37.3]} 29... Nxg5 {[%clk 0:01:58.4]} 30. Bxd5 {[%clk 0:00:36.8]} 30... Rd8
{[%clk 0:01:56.6]} 31. e4 {[%clk 0:00:36]} 31... Bd4 {[%clk 0:01:46.5]} 32. h4
{[%clk 0:00:28.5]} 32... Nh3+ {[%clk 0:01:42.6]} 33. Kg2 {[%clk 0:00:28]} 33...
Nxf2 {[%clk 0:01:42.9]} 34. Nf3 {[%clk 0:00:23.2]} 34... Nd3 {[%clk 0:01:43.5]}
35. Rd1 {[%clk 0:00:11.1]} 35... Bxb2 {[%clk 0:01:42.7]} 36. e6 {[%clk 0:00:10]}
36... Nc5 {[%clk 0:01:41.6]} 37. a4 {[%clk 0:00:05.9]} 37... Bf6 {[%clk
0:01:34.6]} 38. Rb1 {[%clk 0:00:05.6]} 38... Nxa4 {[%clk 0:01:33.8]} 39. Rc1
{[%clk 0:00:05.5]} 39... Nc3 {[%clk 0:01:32.5]} 40. Rb1 {[%clk 0:00:04.1]} 40...
Nxb1 {[%clk 0:01:32.2]} 0-1

[Event "*** SCC Grand Prix: Titled Tuesday Blitz"]
[Site "Chess.com"]
[Date "2020.08.04"]
[Round "5"]
[White "binbin239"]
[Black "vesalhamedinia"]
[Result "1-0"]
[WhiteElo "2534"]
[BlackElo "2278"]
[TimeControl "180+1"]
[EndTime "14:39:32 PDT"]
[Termination "binbin239 won by resignation"]

1. d4 {[%clk 0:03:00.9]} 1... d5 {[%clk 0:02:59.8]} 2. c4 {[%clk 0:03:01]} 2...
e6 {[%clk 0:02:59.2]} 3. Nf3 {[%clk 0:03:01]} 3... Nf6 {[%clk 0:02:59]} 4. g3
{[%clk 0:03:00.1]} 4... Bb4+ {[%clk 0:02:59]} 5. Bd2 {[%clk 0:02:59.5]} 5... Be7
{[%clk 0:02:58.8]} 6. Bg2 {[%clk 0:02:59]} 6... O-O {[%clk 0:02:59.5]} 7. O-O
{[%clk 0:02:58.8]} 7... Nbd7 {[%clk 0:03:00.2]} 8. Qc2 {[%clk 0:02:57.6]} 8...
c6 {[%clk 0:03:00.7]} 9. Bf4 {[%clk 0:02:54.9]} 9... b6 {[%clk 0:03:00.1]} 10.
Nbd2 {[%clk 0:02:48.9]} 10... Nh5 {[%clk 0:02:50.4]} 11. Be3 {[%clk 0:02:46.1]}
11... Bb7 {[%clk 0:02:46.1]} 12. Ne5 {[%clk 0:02:43.4]} 12... f5 {[%clk
0:02:38]} 13. Ndf3 {[%clk 0:02:40]} 13... Rc8 {[%clk 0:02:19.2]} 14. Rfd1 {[%clk
0:02:35]} 14... Nhf6 {[%clk 0:02:11.9]} 15. Ng5 {[%clk 0:02:32.4]} 15... Nxe5
{[%clk 0:02:02.9]} 16. dxe5 {[%clk 0:02:30.1]} 16... Ng4 {[%clk 0:02:01.7]} 17.
Nxe6 {[%clk 0:02:29.7]} 17... Nxe3 {[%clk 0:01:44.8]} 18. fxe3 {[%clk
0:02:16.3]} 18... Qd7 {[%clk 0:01:41.9]} 19. Nxf8 {[%clk 0:02:15.8]} 19... Rxf8
{[%clk 0:01:42.8]} 20. cxd5 {[%clk 0:02:14.4]} 20... cxd5 {[%clk 0:01:43.7]} 21.
Rac1 {[%clk 0:01:54.2]} 21... Bc5 {[%clk 0:01:40]} 22. Qd3 {[%clk 0:01:46.6]}
22... g6 {[%clk 0:01:22.5]} 23. b4 {[%clk 0:01:42.2]} 23... Bxb4 {[%clk
0:01:18.1]} 24. Bxd5+ {[%clk 0:01:41.8]} 24... Bxd5 {[%clk 0:01:06.3]} 25. Qxd5+
{[%clk 0:01:41.5]} 25... Qxd5 {[%clk 0:01:07.2]} 26. Rxd5 {[%clk 0:01:40.4]}
26... Bc5 {[%clk 0:01:05.6]} 27. Kg2 {[%clk 0:01:40]} 27... Bxe3 {[%clk
0:01:03.4]} 28. Rc7 {[%clk 0:01:38.4]} 28... Re8 {[%clk 0:00:53.8]} 29. Rxa7
{[%clk 0:01:34.4]} 29... b5 {[%clk 0:00:49.5]} 30. Rb7 {[%clk 0:01:34.3]} 30...
Ra8 {[%clk 0:00:42.8]} 31. Kf3 {[%clk 0:01:29.7]} 31... Bg5 {[%clk 0:00:40.1]}
32. h4 {[%clk 0:01:27]} 32... Bh6 {[%clk 0:00:37.9]} 33. e6 {[%clk 0:01:23.1]}
33... Ra3+ {[%clk 0:00:28.7]} 34. Kg2 {[%clk 0:01:21.6]} 34... Re3 {[%clk
0:00:18.5]} 35. Rd8+ {[%clk 0:01:20.7]} 35... Bf8 {[%clk 0:00:17.8]} 36. e7
{[%clk 0:01:18.5]} 1-0

[Event "*** SCC Grand Prix: Titled Tuesday Blitz"]
[Site "Chess.com"]
[Date "2020.08.04"]
[Round "5"]
[White "AbigailCabezas"]
[Black "NotFischer"]
[Result "0-1"]
[WhiteElo "1385"]
[BlackElo "2204"]
[TimeControl "180+1"]
[EndTime "14:39:38 PDT"]
[Termination "NotFischer won by resignation"]

1. e4 {[%clk 0:02:59.3]} 1... d5 {[%clk 0:02:59.6]} 2. exd5 {[%clk 0:02:58.2]}
2... Nf6 {[%clk 0:03:00]} 3. Nc3 {[%clk 0:02:57.9]} 3... Nxd5 {[%clk 0:03:00]}
4. Nge2 {[%clk 0:02:55.3]} 4... Nc6 {[%clk 0:02:59.2]} 5. Nxd5 {[%clk
0:02:53.9]} 5... Qxd5 {[%clk 0:02:58.9]} 6. Nc3 {[%clk 0:02:53.7]} 6... Qd8
{[%clk 0:02:58.5]} 7. Be2 {[%clk 0:02:53.4]} 7... e5 {[%clk 0:02:58.4]} 8. O-O
{[%clk 0:02:53]} 8... Be7 {[%clk 0:02:57.6]} 9. d3 {[%clk 0:02:49.8]} 9... O-O
{[%clk 0:02:57.1]} 10. Re1 {[%clk 0:02:42.4]} 10... Be6 {[%clk 0:02:56.6]} 11.
h3 {[%clk 0:02:41.9]} 11... Nd4 {[%clk 0:02:50.8]} 12. Bf3 {[%clk 0:02:35.3]}
12... f6 {[%clk 0:02:19.2]} 13. Bxb7 {[%clk 0:02:31.4]} 13... Rb8 {[%clk
0:02:19.2]} 14. Bf3 {[%clk 0:02:29.2]} 14... c5 {[%clk 0:02:16.3]} 15. Be3
{[%clk 0:02:15.7]} 15... Rxb2 {[%clk 0:02:10.7]} 16. Bxd4 {[%clk 0:02:06.5]}
16... cxd4 {[%clk 0:02:10.5]} 17. Ne4 {[%clk 0:02:05.9]} 17... Qa5 {[%clk
0:02:02.4]} 18. a4 {[%clk 0:01:39.3]} 18... Rc8 {[%clk 0:02:01]} 19. Bg4 {[%clk
0:01:23.2]} 19... f5 {[%clk 0:01:50]} 20. Bxf5 {[%clk 0:01:06.6]} 20... Bxf5
{[%clk 0:01:50]} 21. Ng3 {[%clk 0:01:05.7]} 21... Bg6 {[%clk 0:01:44.7]} 22. Qf3
{[%clk 0:01:00.9]} 22... Rcxc2 {[%clk 0:01:28.3]} 23. Nf5 {[%clk 0:00:54.8]}
23... Bf8 {[%clk 0:01:25.1]} 24. Nh4 {[%clk 0:00:47.8]} 24... Rxf2 {[%clk
0:01:19.7]} 25. Qxf2 {[%clk 0:00:41.7]} 25... Rxf2 {[%clk 0:01:18.6]} 26. Kxf2
{[%clk 0:00:42.1]} 26... Qd2+ {[%clk 0:01:11.1]} 27. Kg1 {[%clk 0:00:39.6]}
27... Bd6 {[%clk 0:00:49.4]} 28. Nf3 {[%clk 0:00:34.2]} 28... Qf4 {[%clk
0:00:47]} 29. Rab1 {[%clk 0:00:29.4]} 29... Bxd3 {[%clk 0:00:46]} 30. Rb7 {[%clk
0:00:27.2]} 30... Be4 {[%clk 0:00:42.8]} 31. Rxa7 {[%clk 0:00:23.6]} 31... Bxf3
{[%clk 0:00:40.4]} 32. Ra8+ {[%clk 0:00:22.9]} 32... Bxa8 {[%clk 0:00:39.6]} 0-1

[Event "*** SCC Grand Prix: Titled Tuesday Blitz"]
[Site "Chess.com"]
[Date "2020.08.04"]
[Round "5"]
[White "Shota_Azaladze"]
[Black "djano"]
[Result "1-0"]
[WhiteElo "2694"]
[BlackElo "2429"]
[TimeControl "180+1"]
[EndTime "14:39:41 PDT"]
[Termination "Shota_Azaladze won by resignation"]

1. Nf3 {[%clk 0:03:00.9]} 1... d5 {[%clk 0:02:58.8]} 2. g3 {[%clk 0:03:01.5]}
2... c6 {[%clk 0:02:52.4]} 3. Bg2 {[%clk 0:03:02.1]} 3... Bf5 {[%clk 0:02:51.9]}
4. O-O {[%clk 0:03:02.6]} 4... e6 {[%clk 0:02:52.1]} 5. c4 {[%clk 0:03:03.1]}
5... Nf6 {[%clk 0:02:51.6]} 6. d3 {[%clk 0:03:03.3]} 6... Be7 {[%clk 0:02:48.3]}
7. Qb3 {[%clk 0:03:03.1]} 7... Qc8 {[%clk 0:02:40.9]} 8. Nc3 {[%clk 0:03:03.2]}
8... O-O {[%clk 0:02:39.8]} 9. Be3 {[%clk 0:03:03.1]} 9... Nbd7 {[%clk
0:02:34.4]} 10. Rac1 {[%clk 0:03:02.8]} 10... Nc5 {[%clk 0:02:24.2]} 11. Bxc5
{[%clk 0:02:59.7]} 11... Bxc5 {[%clk 0:02:25.1]} 12. cxd5 {[%clk 0:03:00.4]}
12... exd5 {[%clk 0:02:21.9]} 13. Nxd5 {[%clk 0:02:56]} 13... cxd5 {[%clk
0:01:55.8]} 14. d4 {[%clk 0:02:55.2]} 14... b6 {[%clk 0:01:50.1]} 15. dxc5
{[%clk 0:02:50.5]} 15... bxc5 {[%clk 0:01:51]} 16. Qa3 {[%clk 0:02:45.1]} 16...
Qe6 {[%clk 0:01:30.1]} 17. Qxc5 {[%clk 0:02:39.6]} 17... Rfc8 {[%clk 0:01:23]}
18. Qa3 {[%clk 0:02:35.7]} 18... Qxe2 {[%clk 0:01:13.3]} 19. Rxc8+ {[%clk
0:02:29.7]} 19... Rxc8 {[%clk 0:01:11.9]} 20. Nd4 {[%clk 0:02:29.1]} 20... Qd3
{[%clk 0:01:09.2]} 21. Nxf5 {[%clk 0:02:26.1]} 21... Qxf5 {[%clk 0:01:10.1]} 22.
Qxa7 {[%clk 0:02:26.1]} 22... g6 {[%clk 0:01:06.5]} 23. Qd4 {[%clk 0:02:23.2]}
23... Rc2 {[%clk 0:00:56.4]} 24. Re1 {[%clk 0:02:22.6]} 24... Ne4 {[%clk
0:00:51.7]} 25. Bxe4 {[%clk 0:02:19.9]} 25... dxe4 {[%clk 0:00:48.2]} 26. Rxe4
{[%clk 0:02:20.4]} 26... Rc8 {[%clk 0:00:19]} 27. Kg2 {[%clk 0:02:10.3]} 27...
h5 {[%clk 0:00:18.2]} 28. h4 {[%clk 0:02:09.5]} 28... Qa5 {[%clk 0:00:15.1]} 29.
a3 {[%clk 0:02:07.1]} 29... Qa8 {[%clk 0:00:15.6]} 30. Kh2 {[%clk 0:02:06.3]}
30... Rd8 {[%clk 0:00:14.5]} 31. Qe3 {[%clk 0:02:05.8]} 31... Qc6 {[%clk
0:00:13.5]} 32. a4 {[%clk 0:02:03.7]} 32... Kh7 {[%clk 0:00:11.6]} 33. a5 {[%clk
0:02:02.9]} 33... Qf6 {[%clk 0:00:10.9]} 34. Rf4 {[%clk 0:02:01.1]} 34... Qg7
{[%clk 0:00:09.2]} 35. b4 {[%clk 0:02:00.4]} 35... Kg8 {[%clk 0:00:08.9]} 36.
Re4 {[%clk 0:01:59]} 36... Kf8 {[%clk 0:00:08.5]} 37. a6 {[%clk 0:01:57.7]}
37... Qf6 {[%clk 0:00:08.8]} 38. a7 {[%clk 0:01:57.2]} 38... Qa6 {[%clk
0:00:08.6]} 39. Qc5+ {[%clk 0:01:49.5]} 39... Kg8 {[%clk 0:00:07.9]} 40. b5
{[%clk 0:01:48.9]} 40... Qa2 {[%clk 0:00:07.3]} 41. b6 {[%clk 0:01:47.3]} 41...
Qb1 {[%clk 0:00:07.6]} 42. Qe3 {[%clk 0:01:45.4]} 42... Qb5 {[%clk 0:00:06.3]}
43. Re7 {[%clk 0:01:39.3]} 43... Qc6 {[%clk 0:00:05.9]} 44. Rc7 {[%clk
0:01:34.3]} 44... Qf6 {[%clk 0:00:05.2]} 45. Qf4 {[%clk 0:01:32.9]} 45... Qe6
{[%clk 0:00:04.7]} 46. Qxf7+ {[%clk 0:01:31.2]} 46... Qxf7 {[%clk 0:00:04.6]}
47. Rxf7 {[%clk 0:01:31.9]} 47... Kxf7 {[%clk 0:00:04.9]} 48. b7 {[%clk
0:01:32.1]} 1-0